Cogmind - Beta 11 @@@ ROGUE MODE // 2022.04.03 @ 19:54:44 Player: Owlsley Result: Destroyed by G-50 Soldier with Heavy Laser Performance ------------- Evolutions (2) 1000 Regions Visited (6) 1200 Robots Destroyed (49) 245 Value Destroyed (1472) 1472 Prototype IDs (9) 180 Alien Tech Used (0) 0 Bonus (60) 60 TOTAL SCORE: 4157 Bonus ------- Follower Combat Kills 60 Cogmind --------- Core Integrity 0/550 Matter 294/300 Energy 100/100 System Corruption 0% Temperature Cool (9) Movement Core (50) Location -8/Storage Parts ------- > --- POWER (1) -------- (None) > --- PROPULSION (3) --- (None) > --- UTILITY (5) ------ Advanced Visual Processing Unit Targeting Computer > --- WEAPON (2) ------- (None) > --- INVENTORY (5) ---- Large Storage Unit Authchip [Propulsion] Authchip [Processor] Authchip [Weapon] Heavy EM Shotgun Peak State ------------ > --- POWER ------------ Light Nuclear Core > --- PROPULSION ------- Aluminum Leg Aluminum Leg Carbon-fiber Leg > --- UTILITY ---------- Improved Heat Sink Large Storage Unit Advanced Visual Processing Unit Targeting Computer Light Armor Plating > --- WEAPON ----------- Enhanced Autogun Enhanced Autogun > --- INVENTORY -------- Improved Ion Engine Aluminum Leg Aluminum Leg High-capacity Matter Pod Hardened Light Armor Plating Authchip [Propulsion] Authchip [Processor] Authchip [Weapon] Particle Gun Heavy Particle Cannon Ion Cannon Ion Cannon Enhanced Autogun Assault Cannon Flak Cannon [Rating: 29] Favorites ----------- Power Light Ion Engine Engine Light Ion Engine Power Core Light Nuclear Core Propulsion Aluminum Leg Leg Aluminum Leg Utility Light Armor Plating Device Improved Heat Sink Storage Medium Storage Unit Processor Targeting Computer Hackware System Shield Protection Light Armor Plating Weapon EM Pulse Gun Energy Gun EM Pulse Gun Energy Cannon Particle Cannon Ballistic Gun Assault Rifle Ballistic Cannon Light Cannon Build | -11 -10 -10 -10 -9 -8 -8 ------- Run | Scr Mat Min Exi Min Mat Sto Slots Evolved 4 | . . . . . 4 . Power . | . . . . . . . Propulsion 1 | . . . . . 1 . Utility 3 | . . . . . 3 . Weapon . | . . . . . . . Parts Attached 65 | . 14 5 1 7 20 18 Power 8 | . 3 1 . 1 1 2 Engine 7 | . 3 1 . 1 . 2 Core 1 | . . . . . 1 . Reactor . | . . . . . . . Propulsion 12 | . 3 1 . 2 4 2 Treads . | . . . . . . . Leg 12 | . 3 1 . 2 4 2 Wheel . | . . . . . . . Hover . | . . . . . . . Flight . | . . . . . . . Utility 13 | . 4 . . . 7 2 Device 1 | . . . . . 1 . Storage 2 | . 1 . . . 1 . Processor 3 | . . . . . 3 . Hackware 1 | . . . . . 1 . Protection 6 | . 3 . . . 1 2 Artifact . | . . . . . . . Weapon 32 | . 4 3 1 4 8 12 Energy Gun 14 | . 2 1 1 2 1 7 Energy Cannon 7 | . 2 . . 1 2 2 Ballistic Gun 4 | . . . . . 2 2 Ballistic Cannon 7 | . . 2 . 1 3 1 Launcher . | . . . . . . . Special Weapon . | . . . . . . . Impact Weapon . | . . . . . . . Slashing Weapon . | . . . . . . . Piercing Weapon . | . . . . . . . Special Melee Weapon . | . . . . . . . Unidentified Prototypes 7 | . . . . . . 7 Parts Lost 16 | . 6 . . 1 1 8 Power 3 | . 1 . . 1 . 1 Propulsion 6 | . 1 . . . . 5 Utility 4 | . 1 . . . 1 2 Weapon 3 | . 3 . . . . . Highest Loss Streak 4 | . 3 . . 1 1 4 To Critical Strikes . | . . . . . . . Average Slot Usage (%) 94 | . 93 99 100 100 90 90 Engine 10 | . 13 14 14 14 2 2 Core 2 | . . . . . 6 5 Leg 27 | . 28 28 28 28 27 24 Device 1 | . . . . . 1 8 Storage 12 | . 14 14 14 14 9 8 Processor 5 | . . . . . 15 18 Protection 11 | . 13 14 14 14 8 5 Energy Gun 14 | . 12 17 28 26 2 7 Energy Cannon 1 | . 1 . . . 2 . Ballistic Gun 4 | . 8 . . . 5 6 Ballistic Cannon 2 | . . 10 . . 7 2 Naked Turns . | . . . . . . . Heaviest Build 39 | 12 24 23 20 23 35 39 Greatest Support 35 | 20 20 20 20 20 35 35 Greatest Overweight (x) 3 | . 1 1 . 1 . 3 Average Overweight (x) . | . . . . . . . Largest Inventory Capacity 15 | . 10 10 10 10 15 15 Average Capacity 11 | . 9 10 10 10 13 14 Most Carried 15 | . 10 10 10 10 15 15 Average Carried 10 | . 9 9 10 9 12 13 Final Capacity 15 | 8 10 10 10 10 15 5 Final Carried 15 | 6 10 10 10 9 15 5 Class Distribution -------------------- 70% | Mutant 29% | Scavenger-Mutant Dominant Class ---------------- Mutant | -10/Materials Mutant | -10/Mines Mutant | -10/Exiles Mutant | -9/Mines Scavenger-Mutant | -8/Materials Scavenger-Mutant | -8/Storage Resources | -11 -10 -10 -10 -9 -8 -8 ----------- Run | Scr Mat Min Exi Min Mat Sto Matter Collected 1473 | 200 267 58 . 87 547 314 Remotely . | . . . . . . . Salvage Created 1859 | . 758 35 . 149 634 283 Parts 121 | . 54 5 . 7 36 19 Haulers Intercepted 4 | . 2 . . . 2 . Recyclers Shooed . | . . . . . . . Parts Field Recycled . | . . . . . . . Retrieved Matter . | . . . . . . . Parts Self-Destructed . | . . . . . . . Prevented . | . . . . . . . Kills | -11 -10 -10 -10 -9 -8 -8 ------- Run | Scr Mat Min Exi Min Mat Sto Combat Hostiles Destroyed 40 | . 14 2 . 5 13 6 Guns 24 | . 9 1 . 2 7 5 Cannons 14 | . 3 1 . 3 6 1 AOE 2 | . 2 . . . . . Classes Destroyed 10 | . 5 1 . 1 3 . Builder 1 | . 1 . . . . . Tunneler 2 | . 2 . . . . . Hauler 4 | . 2 . . . 2 . Recycler 1 | . . . . . 1 . Watcher 3 | . 1 . . . 2 . Swarmer 8 | . . 2 . . 6 . Grunt 21 | . 14 . . 3 4 . Sentry 8 | . . . . . 2 6 Hunter 1 | . . . . . 1 . Assembled 2 | . . . . 2 . . Best Kill Streak 4 | . 4 2 . 3 3 1 Combat Bots Only 4 | . 4 2 . 3 3 1 Max Kills in Single Turn 1 | . 1 1 . 1 1 1 Gunslinging . | . . . . . . . Exploded 1 | . 1 . . . . . Melee . | . . . . . . . Uniques/NPCs Destroyed . | . . . . . . . Combat | -11 -10 -10 -10 -9 -8 -8 -------- Run | Scr Mat Min Exi Min Mat Sto Damage Taken 2852 | . 844 55 . 200 402 1351 Core 767 | . 163 10 . 28 86 480 Absorbed by Shields . | . . . . . . . Core Remaining (%) 59 | 100 . . . 19 . . Volleys Fired 148 | . 59 3 . 10 39 37 Largest 2 | . 2 2 . 2 2 2 Hottest 122 | . 118 90 . 103 108 122 Shots Fired 285 | . 113 6 . 20 78 68 Gun 206 | . 100 4 . 14 35 53 Cannon 79 | . 13 2 . 6 43 15 Launcher . | . . . . . . . Special . | . . . . . . . Kinetic 155 | . 51 2 . 3 60 39 Thermal 71 | . 17 3 . 10 12 29 Explosive . | . . . . . . . Electromagnetic 59 | . 45 1 . 7 6 . Robot Hit Streak 24 | . 11 3 . 6 14 24 Robot Miss Streak 4 | . 4 1 . 3 3 2 Penetration Max . | . . . . . . . Secondary Targets . | . . . . . . . Shots Hit Robots 191 | . 74 3 . 11 52 51 Core Hits 80 | . 33 2 . 8 25 12 Critical Kills . | . . . . . . . Critical Parts Destroyed . | . . . . . . . Critical Strikes 2 | . . 1 . . . 1 Burn 1 | . . . . . . 1 Blast 1 | . . 1 . . . . Melee Attacks . | . . . . . . . Impact . | . . . . . . . Slashing . | . . . . . . . Piercing . | . . . . . . . Sneak Attacks . | . . . . . . . Combat Hostiles . | . . . . . . . Follow-up Attacks . | . . . . . . . Damage Inflicted 3257 | . 1233 46 . 152 900 926 Guns 2144 | . 863 27 . 88 416 750 Cannons 914 | . 197 19 . 64 484 150 Explosions 173 | . 173 . . . . . Melee . | . . . . . . . Ramming 26 | . . . . . . 26 Kinetic 1637 | . 389 19 . 20 660 549 Thermal 1030 | . 422 27 . 81 149 351 Explosive . | . . . . . . . Electromagnetic 564 | . 422 . . 51 91 . Impact . | . . . . . . . Slashing . | . . . . . . . Piercing . | . . . . . . . Highest Corruption . | . . . . . . . Average Corruption . | . . . . . . . Corruption Purged . | . . . . . . . Corruption Blocked . | . . . . . . . Overload Shots . | . . . . . . . Overflow Damage . | . . . . . . . Projectiles . | . . . . . . . Explosions . | . . . . . . . Melee . | . . . . . . . Knockbacks 6 | . . . . . 6 . Impact . | . . . . . . . Kinetic 5 | . . . . . 5 . Secondary 1 | . . . . . 1 . Self-Inflicted Damage 51 | . 40 . . . . 11 Shots 1 | . 1 . . . . . Rammed 6 | . . . . . . 6 Targets Rammed 6 | . . . . . . 6 Kicked . | . . . . . . . Crushed . | . . . . . . . Highest Temperature 364 | . 263 66 . 159 177 364 Average Temperature 67 | . 69 30 . 68 44 109 Received Heat Transfer 1116 | . 465 6 . 6 207 432 Effects 2 | . 1 . . . . 1 Interference 2 | . 1 . . . . 1 Siege Activations . | . . . . . . . Robots Corrupted . | . . . . . . . Combat Hostiles . | . . . . . . . Parts Fried 1 | . 1 . . . . . Impact Corruptions . | . . . . . . . Robots Melted . | . . . . . . . Combat Hostiles . | . . . . . . . Parts Melted 1 | . . . . . . 1 Heat Transferred 1968 | . 731 74 . 185 296 682 Parts Sabotaged . | . . . . . . . Parts Stolen . | . . . . . . . Parts Stripped . | . . . . . . . Power Chain Reactions 2 | . 2 . . . . . Missiles Intercepted . | . . . . . . . Alert | -11 -10 -10 -10 -9 -8 -8 ------- Run | Scr Mat Min Exi Min Mat Sto Peak Influence 317 | . 280 157 . 137 308 317 Initial 69 | . . 51 . . 1 69 Average 143 | . 125 135 . 73 178 214 Maximum Alert Level 1 | . 1 . . . 1 1 Low Security (%) 77 | . 92 100 . 100 58 32 Level 1 22 | . 7 . . . 41 67 Level 2 . | . . . . . . . Level 3 . | . . . . . . . Level 4 . | . . . . . . . Level 5 . | . . . . . . . High Security . | . . . . . . . Max Security . | . . . . . . . Squads Dispatched 9 | . 5 . . . 1 3 Investigation 3 | . 2 . . . 1 . Extermination . | . . . . . . . Reinforcement 4 | . 3 . . . . 1 Assault 2 | . . . . . . 2 Garrison . | . . . . . . . Intercept . | . . . . . . . Searches Triggered . | . . . . . . . Construction Impeded . | . . . . . . . Haulers Reinforced . | . . . . . . . Active Scanning Responses . | . . . . . . . Cargo Convoy Interrupts . | . . . . . . . Stealth | -11 -10 -10 -10 -9 -8 -8 --------- Run | Scr Mat Min Exi Min Mat Sto Distress Signals 4 | . 3 . . . 1 . Communications Jammed . | . . . . . . . Distress Signals . | . . . . . . . Times Spotted 93 | . 30 5 . 15 25 18 Peak Tracking Total 11 | . 4 3 . 7 6 11 Tactical Retreats 8 | . 2 . . 3 3 . Traps | -11 -10 -10 -10 -9 -8 -8 ------- Run | Scr Mat Min Exi Min Mat Sto Traps Triggered 5 | . 1 . . . 1 3 Indirectly . | . . . . . . . Trap Hack Attempts . | . . . . . . . Triggered . | . . . . . . . Disarmed . | . . . . . . . Reprogrammed . | . . . . . . . Reused . | . . . . . . . Traps Extracted . | . . . . . . . Installed . | . . . . . . . Triggered . | . . . . . . . Machines | -11 -10 -10 -10 -9 -8 -8 ---------- Run | Scr Mat Min Exi Min Mat Sto Machines Disabled 6 | . 2 . . . 2 2 Max in Single Turn 1 | . 1 . . . 1 1 Machines Sabotaged . | . . . . . . . Garrisons Compromised . | . . . . . . . Overloaded Fab Kills . | . . . . . . . Hacking | -11 -10 -10 -10 -9 -8 -8 --------- Run | Scr Mat Min Exi Min Mat Sto Machines Accessed 16 | . 5 . 4 1 5 1 Terminals 10 | . 5 . . 1 3 1 Fabricators . | . . . . . . . Repair Stations . | . . . . . . . Recycling Units 1 | . . . . . 1 . Scanalyzers 1 | . . . . . 1 . Garrison Access . | . . . . . . . Total Hacks 34 | . 9 . 4 4 14 3 Successful 18 | . 5 . 4 1 6 2 Failed 16 | . 4 . . 3 8 1 Catastrophic 6 | . 4 . . . 2 . Database Lockouts . | . . . . . . . Manual 17 | . 6 . . 2 8 1 Terminals 26 | . 9 . . 4 10 3 Fabricators . | . . . . . . . Repair Stations . | . . . . . . . Recycling Units 2 | . . . . . 2 . Scanalyzers 2 | . . . . . 2 . Garrison Access . | . . . . . . . Terminal Hacks 12 | . 4 . 4 1 2 1 Record 4 | . . . 4 . . . Robot Analysis 2 | . 2 . . . . . Prototype ID Bank 1 | . 1 . . . . . Level Access Points 1 | . . . . . . 1 Branch Access Points 1 | . . . . . 1 . Unreport Threat 2 | . . . . 1 1 . Locate Traps 1 | . 1 . . . . . Fabricator Hacks . | . . . . . . . Repair Station Hacks . | . . . . . . . Recycling Unit Hacks . | . . . . . . . Scanalyzer 2 | . . . . . 2 . Insert Component 1 | . . . . . 1 . Analyze 1 | . . . . . 1 . Garrison Access Hacks . | . . . . . . . Unauthorized Hacks 4 | . 1 . . . 2 1 Terminals 4 | . 1 . . . 2 1 Botnet 3 | . 1 . . . 1 1 Disrupt 1 | . . . . . 1 . Fabricators . | . . . . . . . Repair Stations . | . . . . . . . Recycling Units . | . . . . . . . Scanalyzers . | . . . . . . . Garrison Access . | . . . . . . . Data Cores Recovered . | . . . . . . . Used . | . . . . . . . Hacking Detections 12 | . 5 . . 1 5 1 Full Trace Events . | . . . . . . . Feedback Events . | . . . . . . . Feedback Blocked . | . . . . . . . Robot Schematics Acquired . | . . . . . . . Robots Built . | . . . . . . . Authchips . | . . . . . . . Time . | . . . . . . . Total Robot Build Rating . | . . . . . . . Part Schematics Acquired 1 | . . . . . 1 . Parts Built . | . . . . . . . Authchips . | . . . . . . . Time . | . . . . . . . Total Part Build Rating . | . . . . . . . Parts Repaired . | . . . . . . . Time . | . . . . . . . Parts Recycled . | . . . . . . . Recycled Matter . | . . . . . . . Retrieved Matter . | . . . . . . . Retrieved Components . | . . . . . . . Parts Scanalyzed 1 | . . . . . 1 . Part Schematics Acquired 1 | . . . . . 1 . Parts Damaged . | . . . . . . . Bothacking | -11 -10 -10 -10 -9 -8 -8 ------------ Run | Scr Mat Min Exi Min Mat Sto Used RIF Installer . | . . . . . . . Robots Hacked . | . . . . . . . Non-combat . | . . . . . . . Combat . | . . . . . . . Robot Hacks Applied . | . . . . . . . Relay Couplers Released . | . . . . . . . Fabnet Peak Effective % . | . . . . . . . Robots Rewired . | . . . . . . . Allies Hacked . | . . . . . . . Hacks Repelled . | . . . . . . . Allies | -11 -10 -10 -10 -9 -8 -8 -------- Run | Scr Mat Min Exi Min Mat Sto Total Allies 4 | . . 2 . . . 2 Largest Group 2 | . . 2 2 . . 2 Highest-Rated Group 62 | . . 45 45 . . 62 Highest-Rated Ally 31 | . . 31 31 . . 31 Total Orders . | . . . . . . . Ally Attacks 14 | . . 5 . . . 9 Total Damage 275 | . . 84 . . . 191 Kills 2 | . . 2 . . . . Allies Corrupted . | . . . . . . . Allies Melted . | . . . . . . . Intel | -11 -10 -10 -10 -9 -8 -8 ------- Run | Scr Mat Min Exi Min Mat Sto Robot Analysis Total 2 | . 2 . . . . . Derelict Logs Recovered . | . . . . . . . Drone Launches . | . . . . . . . Drone Recoveries . | . . . . . . . Exploration | -11 -10 -10 -10 -9 -8 -8 ------------- Run | Scr Mat Min Exi Min Mat Sto Turns Passed 3877 | . 1337 262 571 471 786 450 Spaces Moved 2473 | 1 841 139 475 343 480 194 Core 34 | . . . . . . 34 Treads . | . . . . . . . Legs 2439 | 1 841 139 475 343 480 160 Wheels . | . . . . . . . Hover . | . . . . . . . Flight . | . . . . . . . Fastest Speed 50 | 120 120 120 120 120 120 50 Average Speed 125 | 120 124 165 120 121 120 134 Slowest Speed 330 | 120 190 190 120 190 120 330 Overloaded Moves . | . . . . . . . Propulsion Burnouts . | . . . . . . . Robots Hopped . | . . . . . . . Cave-ins Triggered . | . . . . . . . Exploration Rate (%) 50 | 2 97 36 92 50 36 42 Regions Visited 6 Branch Regions 4 Pre-discovered Areas . | . . . . . . . Known Exits Taken 1 | . . . . . 1 . Unknown Exits Taken 5 | 1 1 1 1 1 . . Scrap Searched 2 | . . 1 . 1 . . Spaces Dug . | . . . . . . . Terrain Destroyed 5 | . 5 . . . . . Melee . | . . . . . . . Projectile . | . . . . . . . AOE 5 | . 5 . . . . . Terrain Rammed . | . . . . . . . Walls Destroyed . | . . . . . . . Machines Disabled . | . . . . . . . Actions | -11 -10 -10 -10 -9 -8 -8 --------- Run | Scr Mat Min Exi Min Mat Sto Total 2985 | . 1021 164 475 378 615 332 Wait 190 | . 66 15 . 17 52 40 Move 2467 | . 840 138 474 342 479 194 Hop . | . . . . . . . Pick Up 46 | . 22 1 . . 14 9 Fast Attach 15 | . 3 1 . . 6 5 Attach 17 | . 5 1 . 1 3 7 Detach 6 | . 2 . . . 1 3 Swap 33 | . 6 3 1 6 11 6 Drop 57 | . 18 2 . 2 10 25 Fire 148 | . 59 3 . 10 39 37 Melee . | . . . . . . . Ram 6 | . . . . . . 6 Kick . | . . . . . . . Crush . | . . . . . . . Escape Stasis . | . . . . . . . Rewire . | . . . . . . . Trap . | . . . . . . . Miscellaneous . | . . . . . . . Route ------- -11/Scrapyard -10/Materials (discovered 5 exits: [*Mat x3] / [*Min x2]) -10/Mines (discovered 2 exits: [*Mat] / *Exi) -10/Exiles -9/Mines -8/Materials (discovered 2 exits: *Sto x2) -8/Storage (discovered 1 exit: Fac) History --------- Turn | Location | Event 1 | -11/Scrapyard | Discovered new exit (range 0) 1 | -11/Scrapyard | Entered Materials 335 | -10/Materials | Build established: Mutant 346 | -10/Materials | Discovered new exit (range 16) 566 | -10/Materials | Discovered new exit (range 12) 678 | -10/Materials | Discovered new exit (range 16) 721 | -10/Materials | Core integrity fell below 50% 760 | -10/Materials | Lost 3 parts (1p1n1w) 957 | -10/Materials | Discovered new exit (range 13) 1134 | -10/Materials | Discovered new exit (range 15) 1338 | -10/Materials | Entered Mines 1405 | -10/Mines | Discovered new exit (range 4) 1585 | -10/Mines | Deemed a non-threat by the Exiles lab entrance 1585 | -10/Mines | Discovered new exit (range 5) 1600 | -10/Mines | Entered Exiles 1600 | -10/Exiles | Found Exiles lab abandoned 1600 | -10/Exiles | Accompanied by 2 allies 1630 | -10/Exiles | Led the pair of lost Derelicts to a safe place 2158 | -10/Exiles | Discovered new exit (range 12) 2171 | -10/Exiles | Entered Mines 2184 | -9/Mines | Met a Derelict bent on vengeance 2403 | -9/Mines | Assembled infested the area 2408 | -9/Mines | Assisted by a Guerilla fighting off Assembled 2583 | -9/Mines | Core integrity fell below 20% 2629 | -9/Mines | Discovered new exit (range 12) 2642 | -9/Mines | Entered Materials 2642 | -8/Materials | Evolved 4 slots: Propulsion x1, Utility x3 2946 | -8/Materials | Build established: Scavenger-Mutant 3235 | -8/Materials | Discovered new exit (range 5) 3317 | -8/Materials | Identified exit to Storage 3428 | -8/Materials | Entered Storage 3434 | -8/Storage | Identified exit to Factory 3616 | -8/Storage | Lost 3 parts (2n1u) 3747 | -8/Storage | Met a pair of Derelict thieves 3850 | -8/Storage | Core integrity fell below 50% 3862 | -8/Storage | Core integrity fell below 20% 3866 | -8/Storage | Lost 4 parts (3n1u) 3878 | -8/Storage | Destroyed by G-50 Soldier with Heavy Laser Last Messages --------------- 03849_ Dropped Hcp. Matter Pod. 03849_ K-01 Serf collects debris. 03850_ Dropped Ion Cannon. 03850_ Dropped Enh. Autogun. 03851_ K-01 Serf collects debris. 03851_ Dropped Adv. Beam Rifle. 03851_ Dropped Prc. Beam Rifle. 03852_ Overheating: System interference. 03852_ Targeting Computer temporarily disabled. 03852_ Dropped Adv. Beam Cannon. 03852_ Dropped Ion Cannon. 03853_ Dropped Flak Cannon. 03853_ Dropped Hvy. Particle Cannon. 03854_ K-01 Serf collects debris. 03854_ Dropped Assault Cannon. 03855_ Dropped Hrd. Light Armor Plating. 03857_ Slammed into G-47 Trooper. 03859_ Slammed into L-31 Rogue. 03870_ Slammed into K-01 Serf. 03877_ Slammed into U-05 Engineer. Map ----- +----------------------------------------------------+ | ?????????????????????????????????????????????????? | | ?????????????????????????????????????????????????? | | ?????????????????????????????????????????????????? | | ?????????????????????????????????????????????????? | | ?????????????????????????????????????????????????? | | ?????????????????????????????????????????????????? | | ?????????????????????????????????????????????????? | | ?????????????????????????????????????????????????? | | ?????????????????????????????????????????????????? | | ??????????????????????????????????????????????"""" | | ?????????????????????????????????????????????## # | | ????????????????????????????????????########?#T # | | ????????????????????????????????????#* * *#??# # | | ????????????????????????????????????# * #??# # | | ????????????????????????????????????#** #??# + | | ??????????????????????????##????????# #??# # | | ?????????????????????????? #????????###" "##??# # | | ?????????????????????????? #?????????#T #??# # | | ?????????????????????????? ######????## #??# # | | ?????????????????????????? # #######+####### # | | ?????????????????????????? + # | | ?????????????????????????? # = # | | ????????????????????"""""" # #######+####### # | | ????????????????????? a a ## #??# ![%%! #?# # | | ??????????????????????? u## #??# !*["[" ### # | | ???????????????????????##@### #??# ""%[["?+ | | ???????????????######### gg #### "["*="?### | | ???????????????#T# lg h / "=?"*"???# # | | ???????????????" + ##########;##### "?""*" #?# # | | ???????????????### #??????? ??# """[!]]#?# # | | ?????????????????# #????? """ """ # ]][]]+? # | | ?????????????????#+#????# """ """ ###########?# # | | ???????????????? !???# """ """ #???????#???#+## | | ??????????????" * !! ?# #?????# ?? | | ????????????#"" !! ## ] ##?????# """ | | ????????????#"T #? ??????## """ | | ????????????#"" "#? !???????# """ | | ????????????#"" T#??"T""#?????????# | | ????????????### "#??""""#?????????# """ | | ??????????????# ##???###??????????? """ | | ??????????????+ #???????????????????? """ | | ??????????????######+###?????????????????????? | | ?????????????????????????????????????######????#+# | | ?????????????????????????????????????# ###### # | | ?????????????????????????????????????# | | ?????????????????????????????????????# | | ?????????????????????????????????????# ######## | | ?????????????????????????????????????## ###??????? | | ??????????????????????????????????????# #????????? | | ??????????????????????????????????????# #????????? | +----------------------------------------------------+ Best States ------------- Heat Dissipation 45 Energy Generation 14 Energy Capacity 280 Matter Stores 300 Matter Capacity 300 Sight Range 20 Terrain Scan Density 10 Armor Coverage 150 Evasion (%) 55 Targeting Accuracy 5 Defensive Hacking 10 Authchip Count 3 Item Schematics ----------------- Carbon-fiber Leg | -8/Materials | Scanalyzed Robot Schematics ------------------ None Fabricated ------------ Nothing Alien Tech Used ----------------- None Achievements -------------- None Challenges ------------ None Game ------ Seed PointInsulationSlayer Manual? 0 Play Time 00:39:36 Cumulative 181.0 hours Start 2022.04.03 @ 14:58:46 End 2022.04.03 @ 19:54:44 Sessions 3 Manual Loads 0 Difficulty Rogue Special Mode None Game No. 173 Rogue 164 Adventurer 1 Explorer 8 Win Type - Total 24 Types 11/1/3/7/1/0/0/1/0 Lore% 63 Gallery% 78 Achievement% 66 Wizard Run 0 Options --------- ASCII 0 Keyboard 0 Movement Mouse Keybinds 0 Fullscreen 1 Font 18/SmallcapsGlow Map View 76x50 Tactical HUD 1 Map Filters NONE Filters NONE Steam 1 RUN: 13a21d51-1275-4b76-8ffd-30baa1d5da30